fUST/lending_fUST_20240204
["ID","MTS","AMOUNT","RATE_DAILY","PERIOD"]
[313230767,1706979039846,-155.04370226,0.00027394,2]
[313230768,1706979039856,-268.93332274,0.00027394,2]
[313230769,1706979039866,-7245.15817935,0.00027394,2]
[313230770,1706979039878,-500.0,0.00027397,2]
[313230771,1706979039888,-500.0,0.00027397,2]
[313230772,1706979039897,-500.0,0.00027397,2]
[313230773,1706979039907,-500.0,0.00027397,2]
[313230774,1706979039916,-500.0,0.00027397,2]
[313230775,1706979039926,-500.0,0.00027397,2]
[313230776,1706979039935,-500.0,0.00027397,2]
[313230777,1706979039945,-155.02015262,0.00027397,2]
[313230778,1706979039955,-500.0,0.00027397,2]
[313230779,1706979039966,-500.0,0.00027397,2]
[313230780,1706979039977,-505.91505518,0.00027397,2]
[313230781,1706979039988,-500.0,0.00027397,2]
[313230782,1706979039997,-500.0,0.00027397,2]
[313230783,1706979040005,-500.0,0.00027397,2]
[313230784,1706979040014,-503.63711727,0.00027397,2]
[313230785,1706979040024,-500.0,0.00027397,2]
[313230786,1706979040032,-500.0,0.00027397,2]
[313230787,1706979040041,-500.0,0.00027397,2]
[313230788,1706979040050,-516.25072468,0.00027397,2]
[313230789,1706979040059,-301.93124772,0.00027397,2]
[313230790,1706979040068,-320.28093465,0.00027397,2]
[313230791,1706979040077,-505.61619828,0.00027397,2]
[313230792,1706979040086,-505.61402559,0.00027397,7]
[313230793,1706979040095,-503.75418424,0.00027397,2]
[313230794,1706979040104,-500.0,0.00027397,2]
[313230795,1706979040113,-503.37405009,0.00027397,2]
[313230796,1706979040123,-500.0,0.00027397,2]
[313230797,1706979040132,-500.0,0.00027397,2]
[313230798,1706979040140,-176.33972775,0.00027397,2]
[313230799,1706979040150,-332.56301035,0.00027397,2]
[313230800,1706979040158,-308.37268485,0.00027397,2]
[313230801,1706979040168,-505.95287227,0.00027397,2]
[313230802,1706979040178,-501.95979755,0.00027397,2]
[313230804,1706979040188,-501.56367019,0.00027397,2]
[313230805,1706979040198,-240.43038265,0.00027397,2]
[313230806,1706979040207,-500.0,0.00027397,2]
[313230807,1706979040218,-500.0,0.00027397,2]
[313230808,1706979040228,-500.0,0.00027397,2]
[313230809,1706979040237,-500.0,0.00027397,2]
[313230810,1706979040247,-530.44382497,0.00027397,2]
[313230811,1706979040256,-180.9410393,0.00027397,2]
[313230812,1706979040265,-509.16728415,0.00027397,2]
[313230813,1706979040274,-500.0,0.00027397,2]
[313230814,1706979040284,-500.0,0.00027397,2]
[313230816,1706979040293,-500.0,0.00027397,2]
[313230818,1706979040302,-500.0,0.00027397,2]
[313230820,1706979040312,-500.0,0.00027397,2]
[313230822,1706979040321,-500.0,0.00027397,2]
[313230823,1706979040330,-500.0,0.00027397,2]
[313230824,1706979040339,-500.0,0.00027397,2]
[313230825,1706979040349,-500.0,0.00027397,2]
[313230826,1706979040358,-552.69410233,0.00027397,2]
[313230827,1706979040367,-500.0,0.00027397,2]
[313230828,1706979040377,-417.62531425,0.00027397,2]
[313230829,1706979040386,-506.59111545,0.00027397,2]
[313230830,1706979040396,-500.0,0.00027397,2]
[313230832,1706979040406,-500.0,0.00027397,2]
[313230834,1706979040415,-500.0,0.00027397,2]
[313230836,1706979040424,-500.0,0.00027397,2]
[313230838,1706979040434,-500.0,0.00027397,2]
[313230839,1706979040443,-5689.48,0.00027397,2]
[313230840,1706979040452,-508.84074128,0.00027397,2]
[313230841,1706979040461,-500.0,0.00027397,2]
[313230842,1706979040470,-500.0,0.00027397,2]
[313230843,1706979040478,-504.62288054,0.00027397,2]
[313230844,1706979040488,-2322.29,0.00027397,2]
[313230845,1706979040497,-500.0,0.00027397,2]
[313230846,1706979040507,-500.0,0.00027397,2]
[313230848,1706979040516,-505.88117629,0.00027397,2]
[313230849,1706979040525,-500.0,0.00027397,2]
[313230850,1706979040535,-513.93419891,0.00027397,2]
[313230851,1706979040544,-500.0,0.00027397,2]
[313230852,1706979040553,-500.0,0.00027397,2]
[313230854,1706979040563,-709.49,0.00027397,2]
[313230855,1706979040572,-500.0,0.00027397,2]
[313230856,1706979040581,-506.1910347,0.00027397,2]
[313230857,1706979040591,-500.0,0.00027397,2]
[313230858,1706979040600,-500.0,0.00027397,2]
[313230859,1706979040610,-500.0,0.00027397,2]
[313230860,1706979040619,-500.0,0.00027397,2]
[313230861,1706979040629,-500.0,0.00027397,2]
[313230862,1706979040638,-525.34101276,0.00027397,2]
[313230863,1706979040647,-549.09261835,0.00027397,2]
[313230864,1706979040657,-500.0,0.00027397,2]
[313230865,1706979040669,-503.81745858,0.00027397,2]
[313230866,1706979040679,-500.0,0.00027397,2]
[313230867,1706979040688,-500.49854135,0.00027397,2]
[313230868,1706979040698,-500.0,0.00027397,2]
[313230869,1706979040707,-500.0,0.00027397,2]
[313230870,1706979040718,-500.0,0.00027397,2]
[313230871,1706979040727,-500.0,0.00027397,2]
[313230872,1706979040737,-500.0,0.00027397,2]
[313230873,1706979040748,-500.0,0.00027397,2]
[313230874,1706979040758,-621.39,0.00027397,2]
[313230875,1706979040767,-1179.35,0.00027397,2]
[313230876,1706979040776,-500.0,0.00027397,2]
[313230877,1706979040785,-500.0,0.00027397,2]
[313230878,1706979040794,-500.0,0.00027397,2]
[313230879,1706979040803,-9325.01,0.00027397,2]
[313230880,1706979040812,-846.77,0.00027397,2]
[313230881,1706979040821,-624.15640998,0.00027397,2]
[313230882,1706979040830,-500.0,0.00027397,2]
[313230883,1706979040839,-686.67665126,0.00027397,2]
[313230884,1706979040848,-395.99999999,0.000275,2]
[313230885,1706979040858,-5000.0,0.00027543,5]
[313230886,1706979040867,-5000.0,0.0002755,5]
[313230887,1706979040876,-5000.0,0.00027555,5]
[313230888,1706979040885,-5000.0,0.00027561,5]
[313230889,1706979040894,-7113.94258855,0.0002759,4]
[313230890,1706979040903,-259.0506465,0.00027671,3]
[313230891,1706979040912,-500.0,0.00027671,2]
[313230892,1706979040921,-500.0,0.00027671,2]
[313230893,1706979040930,-445.72663944,0.00027671,2]
[313230894,1706979040939,-500.0,0.00027671,2]
[313230895,1706979040948,-500.0,0.00027671,2]
[313230896,1706979040958,-500.0,0.00027671,2]
[313230897,1706979040966,-504.99545555,0.00027671,2]
[313230898,1706979040974,-500.0,0.00027671,2]
[313230899,1706979040984,-503.93231267,0.00027671,2]
[313230900,1706979040993,-500.0,0.00027671,2]
[313230901,1706979041003,-500.0,0.00027671,2]
[313230902,1706979041012,-500.0,0.00027671,2]
[313230903,1706979041021,-5689.48,0.00027671,2]
[313230904,1706979041031,-500.0,0.00027671,2]
[313230905,1706979041040,-2322.29,0.00027671,2]
[313230906,1706979041050,-709.49,0.00027671,2]
[313230907,1706979041059,-500.0,0.00027671,2]
[313230908,1706979041070,-500.0,0.00027671,2]
[313230909,1706979041079,-588.78001262,0.00027671,2]
[313230910,1706979041088,-500.0,0.00027671,2]
[313230911,1706979041098,-500.0,0.00027671,2]
[313230912,1706979041106,-621.39,0.00027671,2]
[313230913,1706979041115,-1179.35,0.00027671,2]
[313230914,1706979041125,-9325.01,0.00027671,2]
[313230915,1706979041133,-846.77,0.00027671,2]
[313230916,1706979041141,-83062.66912797,0.0002778,2]
[313230917,1706979041227,-6915.26437009,0.0002778,2]
[313230918,1706979041237,-502.2419623,0.00027879,2]
[313230920,1706979041248,-500.0,0.00027879,2]
[313230921,1706979041257,-500.0,0.00027879,2]
[313230923,1706979041268,-297.26810734,0.00027879,2]
[313230925,1706979041277,-643.70963521,0.00027879,2]
[313230926,1706979041286,-234.2140113,0.00027879,2]
[313230927,1706979041296,-373.40151051,0.00027879,2]
[313230928,1706979041305,-500.0,0.00027879,2]
[313230929,1706979041314,-500.0,0.00027879,2]
[313230930,1706979041323,-2077.540265,0.0002788,2]
[313230931,1706979041332,-21400.306248,0.0002788,2]
[313230932,1706979041341,-21353.521232,0.0002788,2]
[313230933,1706979041350,-21353.521232,0.0002788,2]
[313230934,1706979041360,-21353.521232,0.0002788,2]
[313230935,1706979041371,-337.02,0.00027932,2]
[313230936,1706979041381,-500.0,0.00027945,2]
[313230937,1706979041390,-500.0,0.00027945,2]
[313230938,1706979041400,-500.0,0.00027945,2]
[313230939,1706979041410,-5689.48,0.00027945,2]
[313230940,1706979041419,-2322.29,0.00027945,2]
[313230941,1706979041429,-709.49,0.00027945,2]
[313230942,1706979041439,-500.0,0.00027945,2]
[313230943,1706979041448,-500.0,0.00027945,2]
[313230944,1706979041457,-500.0,0.00027945,2]
[313230945,1706979041467,-500.0,0.00027945,2]
[313230946,1706979041476,-621.39,0.00027945,2]
[313230947,1706979041485,-1179.35,0.00027945,2]
[313230948,1706979041494,-9325.01,0.00027945,2]
[313230949,1706979041503,-846.77,0.00027945,2]
[313230950,1706979041513,-508.33203939,0.0002795,2]
[313230951,1706979041525,-239.26787978,0.0002795,2]
[313230952,1706979041534,-151.0,0.00027997,2]
[313230953,1706979041542,-160.440692,0.00027997,2]
[313230954,1706979041552,-160.440692,0.00027997,2]
[313230955,1706979041561,-310.0155009,0.00027998,2]
[313230956,1706979041571,-410.92520654,0.00027998,2]
[313230957,1706979041581,-2107.2301694,0.00027998,2]
[313230958,1706979041591,-1743.62109759,0.00027998,2]
[313230959,1706979041602,-310.02170152,0.00027998,2]
[313230960,1706979041611,-2426.02127644,0.00027998,2]
[313230961,1706979041620,-1758.51529448,0.00027998,2]
[313230962,1706979041630,-784.36980875,0.00027998,2]
[313230963,1706979041640,-151.0,0.00027998,2]
[313230964,1706979041649,-195.57152127,0.00027999,2]
[313230965,1706979041658,-22444.65501748,0.00027999,2]
[313230966,1706979041705,-3700.8001,0.00025628,3]
[313231005,1706979043115,-2749.7699,0.00025628,3]
[313231006,1706979043126,-2575.26908195,0.00027999,2]
[313231007,1706979043137,-3622.23193525,0.00027999,2]
[313231008,1706979043148,-920.26806475,0.00028,2]
[313231009,1706979043158,-1219.20949503,0.00028,2]
[313231010,1706979043172,-575.0,0.00028,2]
[313231011,1706979043183,-1027.09871679,0.00028,2]
[313231012,1706979043194,-465.7143465,0.00028,2]
[313231013,1706979043206,-1177.87218726,0.00028,2]
[313231014,1706979043216,-227.87176877,0.00028,2]
[313231015,1706979043225,-2278.38611201,0.00028,2]
[313231066,1706979046247,-2726.61388799,0.00028,2]
[313231068,1706979046257,-620.96495057,0.00028,2]
[313231070,1706979046266,-309.9690062,0.00028,2]
[313231072,1706979046276,-620.00052547,0.00028066,2]
[313231074,1706979046285,-200.22,0.000282,4]
[313231076,1706979046294,-500.0,0.00028219,2]
[313231078,1706979046304,-500.0,0.00028219,2]
[313231079,1706979046313,-500.0,0.00028219,2]
[313231080,1706979046322,-5689.48,0.00028219,2]
[313231082,1706979046331,-2322.29,0.00028219,2]
[313231084,1706979046341,-709.49,0.00028219,2]
[313231085,1706979046351,-500.0,0.00028219,2]
[313231086,1706979046360,-500.0,0.00028219,2]
[313231087,1706979046369,-500.0,0.00028219,2]
[313231088,1706979046379,-500.0,0.00028219,2]
[313231089,1706979046388,-621.39,0.00028219,2]
[313231090,1706979046397,-1179.35,0.00028219,2]
[313231091,1706979046406,-9325.01,0.00028219,2]
[313231092,1706979046415,-846.77,0.00028219,2]
[313231093,1706979046425,-500.0,0.00028493,2]
[313231094,1706979046435,-500.0,0.00028493,2]
[313231095,1706979046444,-500.0,0.00028493,2]
[313231096,1706979046453,-5689.48,0.00028493,2]
[313231097,1706979046463,-2322.29,0.00028493,2]
[313231098,1706979046472,-709.49,0.00028493,2]
[313231099,1706979046481,-593.93929012,0.00028493,2]
[313231100,1706979046490,-500.0,0.00028493,2]
[313231101,1706979046499,-500.0,0.00028493,2]
[313231102,1706979046509,-500.0,0.00028493,2]
[313231103,1706979046519,-621.39,0.00028493,2]
[313231104,1706979046528,-1179.35,0.00028493,2]
[313231105,1706979046538,-9325.01,0.00028493,2]
[313231106,1706979046547,-846.77,0.00028493,2]
[313231107,1706979046556,-5000.0,0.00028524,5]
[313231108,1706979046565,-5000.0,0.00028524,5]
[313231109,1706979046575,-5000.0,0.00028539,5]
[313231110,1706979046585,-151.0,0.00028539,2]
[313231111,1706979046594,-160.440692,0.00028539,2]
[313231112,1706979046603,-160.440692,0.00028539,2]
[313231113,1706979046612,-391.0,0.00028616,15]
[313231114,1706979046621,-6139.90329232,0.00028721,2]
[313231115,1706979046631,-312.93612725,0.00028721,2]
[313231116,1706979046641,-279.73730157,0.00028721,2]
[313231117,1706979046650,-234.9472934,0.00028721,2]
[313231118,1706979046659,-280.29406712,0.00028721,2]
[313231119,1706979046669,-1829.96950121,0.00028721,2]
[313231120,1706979046678,-343.09681091,0.00028721,2]
[313231121,1706979046687,-2084.46421862,0.00028721,2]
[313231122,1706979046696,-300.0,0.00028721,2]
[313231123,1706979046706,-20019.07859507,0.00028726,2]
[313231124,1706979046716,-164.379198,0.00028726,2]
[313231125,1706979046725,-151.0,0.00028726,2]
[313231126,1706979046735,-151.0,0.00028726,2]
[313231127,1706979046744,-151.0,0.00028734,2]
[313231128,1706979046753,-500.0,0.00028767,2]
[313231129,1706979046763,-500.0,0.00028767,2]
[313231130,1706979046773,-500.0,0.00028767,2]
[313231131,1706979046783,-5689.48,0.00028767,2]
[313231132,1706979046793,-2322.29,0.00028767,2]
[313231133,1706979046802,-709.49,0.00028767,2]
[313231134,1706979046811,-500.0,0.00028767,2]
[313231135,1706979046820,-500.0,0.00028767,2]
[313231136,1706979046830,-500.0,0.00028767,2]
[313231137,1706979046840,-621.39,0.00028767,2]
[313231138,1706979046850,-1179.35,0.00028767,2]
[313231139,1706979046860,-9325.01,0.00028767,2]
[313231140,1706979046869,-846.77,0.00028767,2]
[313231141,1706979046878,-10678.72754018,0.000288,4]
[313231142,1706979046887,-48933.02600869,0.000288,2]
[313231143,1706979046896,-151.0,0.000288,2]
[313231144,1706979046905,-151.0,0.000288,2]
[313231145,1706979046914,-160.440692,0.000288,2]
[313231146,1706979046923,-160.440692,0.000288,2]
[313231147,1706979046933,-2157.52550416,0.0002888,4]
[313231148,1706979046942,-304.060496,0.000289,14]
[313231149,1706979046951,-258.41290118,0.00028909,2]
[313231150,1706979046960,-16416.16562115,0.00028998,2]
[313231151,1706979046969,-900.0,0.0002904,2]
[313231152,1706979046979,-900.0,0.0002904,2]
[313231153,1706979046987,-900.0,0.0002904,2]
[313231154,1706979046996,-900.0,0.0002904,2]
[313231155,1706979047005,-900.0,0.0002904,2]
[313231156,1706979047014,-500.0,0.00029041,2]
[313231157,1706979047023,-500.0,0.00029041,2]
[313231158,1706979047032,-500.0,0.00029041,2]
[313231159,1706979047041,-5689.48,0.00029041,2]
[313231160,1706979047050,-2322.29,0.00029041,2]
[313231161,1706979047059,-709.49,0.00029041,2]
[313231162,1706979047068,-500.0,0.00029041,2]
[313231163,1706979047078,-500.0,0.00029041,2]
[313231164,1706979047087,-500.0,0.00029041,2]
[313231165,1706979047096,-621.39,0.00029041,2]
[313231166,1706979047105,-1179.35,0.00029041,2]
[313231167,1706979047114,-9325.01,0.00029041,2]
[313231168,1706979047123,-846.77,0.00029041,2]
[313231169,1706979047132,-151.0226534,0.00029058,30]
[313231170,1706979047141,-3563.11590421,0.000292,60]
[313231171,1706979047151,-296.1240164,0.00029314,2]
[313231172,1706979047160,-500.0,0.00029315,2]
[313231173,1706979047171,-500.0,0.00029315,2]
[313231174,1706979047180,-452.89577088,0.00029315,2]
[313231175,1706979047189,-5689.48,0.00029315,2]
[313231176,1706979047198,-2322.29,0.00029315,2]
[313231177,1706979047208,-709.49,0.00029315,2]
[313231178,1706979047218,-500.0,0.00029315,2]
[313231179,1706979047227,-500.0,0.00029315,2]
[313231180,1706979047236,-500.0,0.00029315,2]
[313231181,1706979047246,-621.39,0.00029315,2]
[313231182,1706979047255,-1179.35,0.00029315,2]
[313231183,1706979047265,-9325.01,0.00029315,2]
[313231184,1706979047274,-846.77,0.00029315,2]
[313231185,1706979047283,-199.7424242,0.00029315,2]
[313231186,1706979047292,-199.7424242,0.00029315,2]
[313231187,1706979047302,-620.00002627,0.0002947,2]
[313231188,1706979047311,-500.0,0.00029589,2]
[313231189,1706979047320,-500.0,0.00029589,2]
[313231190,1706979047329,-5689.48,0.00029589,2]
[313231191,1706979047337,-2322.29,0.00029589,2]
[313231192,1706979047347,-709.49,0.00029589,2]
[313231193,1706979047355,-500.0,0.00029589,2]
[313231194,1706979047364,-500.0,0.00029589,2]
[313231195,1706979047373,-220.51875558,0.00029589,2]
[313231196,1706979047382,-621.39,0.00029589,2]
[313231197,1706979047391,-1179.35,0.00029589,2]
[313231198,1706979047399,-9325.01,0.00029589,2]
[313231199,1706979047409,-846.77,0.00029589,2]
[313231200,1706979047418,-177.04829773,0.00029651,2]
[313231201,1706979047427,-151.0226534,0.00029652,7]
[313231202,1706979047437,-151.0,0.00029798,2]
[313231203,1706979047446,-158.12065913,0.00029861,2]
[313231204,1706979047455,-307.06817831,0.00029861,2]
[313231205,1706979047465,-1584.05603829,0.00029862,2]
[313231206,1706979047474,-19884.40674015,0.00029862,2]
[313231207,1706979047484,-151.0,0.00029862,2]
[313231208,1706979047493,-160.440692,0.00029862,2]
[313231209,1706979047503,-160.440692,0.00029862,2]
[313231210,1706979047512,-500.0,0.00029863,2]
[313231211,1706979047521,-500.0,0.00029863,2]
[313231212,1706979047530,-617.735757,0.00029863,2]
[313231427,1706979320758,-155.02325349,0.00020999,4]
[313231428,1706979320780,-464.59107791,0.00021,2]
[313231434,1706979639269,166.666666,0.00021918,2]
[313231435,1706979686710,9208.7721048,0.00021739,2]
[313231436,1706979712220,3000.0,0.00021636,2]
[313231438,1706979730335,1829.96950121,0.00021918,2]
[313231441,1706979748294,1829.96950121,0.00021636,2]
[313231442,1706979762297,1829.96950121,0.00021636,2]
[313231443,1706979776606,1357.71190432,0.00021636,5]
[313231444,1706979780300,352.63948579,0.00021636,2]
[313231445,1706979787503,5000.0,0.00022,2]
[313231446,1706979800596,1357.71190432,0.00021636,5]
[313231447,1706979822712,975.10933496,0.00021636,5]
[313231449,1706979893233,270.6612929,0.00021163,2]
[313231452,1706979927083,786.0289051,0.00021146,2]
[313231455,1706979975199,159.456658,0.00021667,2]
[313231456,1706979982857,1250.415074,0.00021143,2]
[313231459,1706980072283,5.30383478,0.00021041,2]
[313231465,1706980214486,169.752509,0.00019794,2]
[313231515,1706980232243,-273.16924148,0.00021027,2]
[313231517,1706980232253,-155.02170304,0.00021028,4]
[313231519,1706980232262,-689.47929116,0.00021029,2]
[313231520,1706980232271,-155.02170304,0.00021029,2]
[313231522,1706980232280,-155.02170304,0.0002103,2]
[313231524,1706980232289,-166.0964028,0.00021031,2]
[313231526,1706980232299,-155.02170304,0.00021032,2]
[313231529,1706980232308,-5219.85027609,0.00021033,2]
[313231532,1706980232317,-4176.84141118,0.00021033,2]
[313231535,1706980232326,-5848.46839529,0.00021034,2]
[313231537,1706980232335,-2820.01011613,0.00021034,2]
[313231539,1706980232344,-244.69616522,0.00021041,2]
[313231541,1706980232352,-11507.4672462,0.00021237,2]
[313231543,1706980232362,-166.666666,0.00021918,2]
[313231545,1706980232371,-326.17134224,0.00022,2]
[313231547,1706980232380,-426.88835692,0.00022044,2]
[313231549,1706980232389,-3977.44618093,0.00022045,2]
[313231551,1706980232398,-1638.3538228,0.00022061,2]
[313231553,1706980232407,-166.666666,0.00022431,2]
[313231555,1706980232417,-166.666666,0.00022944,2]
[313231557,1706980232426,-1262.10938839,0.00023,2]
[313231559,1706980232435,-9959.98060866,0.00023,2]
[313231561,1706980232444,-166.666666,0.00023456,2]
[313231563,1706980232452,-167.943568,0.00023771,2]
[313231565,1706980232462,-166.666666,0.00023969,2]
[313231567,1706980232471,-4035.82532571,0.00024,2]
[313231569,1706980232480,-4353.72,0.00024228,3]
[313231571,1706980232490,-5224.46,0.00024238,3]
[313231573,1706980232499,-3595.82796446,0.00024248,2]
[313231575,1706980232508,-200.0,0.00024248,7]
[313231577,1706980232521,-150.67095252,0.00024249,2]
[313231579,1706980232530,-2428.58503071,0.00024349,2]
[313231581,1706980232540,-199.24099516,0.00024349,2]
[313231583,1706980232550,-823.02451584,0.00024349,2]
[313231585,1706980232559,-211.53593384,0.00024349,2]
[313231587,1706980232568,-210.0,0.00024349,2]
[313231589,1706980232578,-2662.07178657,0.00024349,2]
[313231591,1706980232588,-499.13845998,0.00024349,2]
[313231593,1706980232598,-166.666666,0.00024482,2]
[313231595,1706980232608,-499.59176388,0.0002496,5]
[313231597,1706980232617,-653.59416934,0.00025,10]
[313231599,1706980232627,-2041.88584619,0.00025,2]
[313231601,1706980232636,-4397.71584247,0.00025,2]
[313231603,1706980232645,-1009.66283659,0.00025,2]
[313231605,1706980232654,-7139.33282423,0.00025,2]
[313231606,1706980232663,-869.18055187,0.00025297,2]
[313231608,1706980232672,-200.0,0.00025479,2]
[313231610,1706980232682,-2670.37974792,0.00025502,2]
[313231612,1706980232690,-890.57594238,0.00025742,2]
[313231614,1706980232702,-781.20535001,0.00025742,2]
[313231655,1706980238324,-335.29979556,0.00025296,2]
[313231656,1706980238334,-36134.1246099,0.00025742,2]
[313231657,1706980238344,-4881.97,0.00025752,3]
[313231658,1706980238353,-1996.50298693,0.00025754,2]
[313231659,1706980238362,-12330.37358316,0.00025755,2]
[313231660,1706980238373,-341.29058712,0.0002576,2]
[313231661,1706980238382,-1278.26817001,0.0002576,2]
[313231662,1706980238394,-1203.58160915,0.0002576,2]
[313231663,1706980238403,-2282.48977409,0.0002576,2]
[313231664,1706980238412,-499.62988618,0.00025761,2]
[313231665,1706980238421,-500.0,0.00025761,2]
[313231666,1706980238430,-500.0,0.00025761,2]
[313231667,1706980238439,-500.0,0.00025761,2]
[313231668,1706980238448,-400.0,0.00025761,2]
[313231669,1706980238457,-500.0,0.00025761,2]
[313231670,1706980238466,-500.0,0.00025761,2]
[313231671,1706980238475,-500.0,0.00025761,2]
[313231672,1706980238484,-500.0,0.00025761,2]
[313231673,1706980238494,-500.0,0.00025761,2]
[313231674,1706980238503,-500.0,0.00025761,2]
[313231675,1706980238513,-500.0,0.00025761,2]
[313231676,1706980238526,-500.0,0.00025761,2]
[313231677,1706980238535,-500.0,0.00025761,2]
[313231678,1706980238544,-500.0,0.00025761,2]
[313231679,1706980238555,-500.0,0.00025761,2]
[313231680,1706980238564,-500.0,0.00025761,2]
[313231681,1706980238574,-500.0,0.00025761,2]
[313231682,1706980238583,-500.0,0.00025761,2]
[313231683,1706980238593,-500.0,0.00025761,2]
[313231684,1706980238603,-500.0,0.00025761,2]
[313231685,1706980238613,-492.26509886,0.00025761,2]
[313231686,1706980238622,-164.579,0.00025761,2]
[313231687,1706980238631,-500.0,0.00025761,2]
[313231688,1706980238641,-500.0,0.00025761,2]
[313231689,1706980238650,-500.0,0.00025761,2]
[313231690,1706980238659,-500.0,0.00025761,2]
[313231691,1706980238668,-500.0,0.00025761,2]
[313231692,1706980238678,-500.0,0.00025761,2]
[313231693,1706980238688,-500.0,0.00025761,2]
[313231694,1706980238697,-500.0,0.00025761,2]
[313231695,1706980238706,-500.0,0.00025761,2]
[313231696,1706980238715,-500.0,0.00025761,2]
[313231697,1706980238725,-389.54755558,0.00025761,2]
[313231698,1706980238736,-500.0,0.00025761,2]
[313231699,1706980238745,-500.0,0.00025761,2]
[313231700,1706980238755,-500.0,0.00025761,2]
[313231701,1706980238765,-500.0,0.00025761,2]
[313231702,1706980238775,-500.0,0.00025761,2]
[313231703,1706980238785,-250.0,0.00025761,2]
[313231704,1706980238795,-500.0,0.00025761,2]
[313231705,1706980238805,-500.0,0.00025761,2]
[313231706,1706980238814,-500.0,0.00025761,2]
[313231707,1706980238823,-500.0,0.00025761,2]
[313231708,1706980238832,-500.0,0.00025761,2]
[313231709,1706980238842,-500.0,0.00025761,2]
[313231710,1706980238851,-598.17880359,0.00025761,2]
[313231711,1706980238860,-500.0,0.00025761,2]
[313231712,1706980238869,-500.0,0.00025761,2]
[313231713,1706980238878,-500.0,0.00025761,2]
[313231714,1706980238977,-500.0,0.00025761,2]
[313231715,1706980238986,-500.0,0.00025761,2]
[313231716,1706980238996,-500.0,0.00025761,2]
[313231717,1706980239005,-500.0,0.00025761,2]
[313231718,1706980239014,-650.0,0.00025761,2]
[313231719,1706980239023,-500.0,0.00025761,2]
[313231720,1706980239032,-500.0,0.00025761,2]
[313231721,1706980239041,-500.0,0.00025761,2]
[313231722,1706980239050,-500.0,0.00025761,2]
[313231723,1706980239059,-500.0,0.00025761,2]
[313231724,1706980239070,-367.33780286,0.00025761,2]
[313231725,1706980239079,-500.0,0.00025761,2]
[313231726,1706980239089,-500.0,0.00025761,2]
[313231727,1706980239099,-500.0,0.00025761,2]
[313231728,1706980239109,-500.0,0.00025761,2]
[313231729,1706980239118,-500.0,0.00025761,2]
[313231730,1706980239128,-500.0,0.00025761,2]
[313231731,1706980239137,-500.0,0.00025761,2]
[313231732,1706980239146,-500.0,0.00025761,2]
[313231733,1706980239155,-199.77026306,0.00025761,2]
[313231734,1706980239165,-50000.0,0.00025762,2]
[313231735,1706980239174,-81212.2813062,0.00025762,2]
[313231736,1706980239183,-150.67095252,0.00025773,2]
[313231737,1706980239192,-6263.15173938,0.00025838,2]
[313231738,1706980239201,-280.0,0.00026673,15]
[313231739,1706980239210,-155.02325349,0.00026887,2]
[313231740,1706980239220,-3990.44033282,0.00026898,2]
[313231741,1706980239232,-150.67095252,0.00027297,2]
[313231742,1706980239241,-232.57161112,0.00027297,2]
[313231743,1706980239251,-1094.92230597,0.00027394,2]
[313231744,1706980239260,-155.04370226,0.00027394,2]
[313231745,1706980239269,-155.13375864,0.00027394,2]
[313231746,1706980239280,-7245.15817935,0.00027395,2]
[313231747,1706980239290,-17170.66227847,0.00027396,2]
[313231748,1706980239299,-516.50741356,0.00027397,2]
[313231749,1706980239309,-500.0,0.00027397,2]